fUST/lending_fUST_20250911
["ID","MTS","AMOUNT","RATE_DAILY","PERIOD"]
[384863548,1757598664272,-480.0,0.00014794,2]
[384863549,1757598664282,-480.0,0.00014794,2]
[384863550,1757598664293,-480.0,0.00014794,2]
[384863551,1757598664302,-1037.22,0.00014794,2]
[384863552,1757598664312,-1926.16,0.00014794,2]
[384863553,1757598664399,-1003.23,0.00014794,2]
[384863554,1757598664409,-480.0,0.00014794,2]
[384863555,1757598664419,-480.0,0.00014794,2]
[384863556,1757598664429,-480.0,0.00014794,2]
[384863557,1757598664438,-480.0,0.00014794,2]
[384863558,1757598664448,-480.0,0.00014794,2]
[384863559,1757598664457,-480.0,0.00014794,2]
[384863560,1757598664467,-205.51573194,0.00014794,2]
[384863561,1757598664476,-480.0,0.00014794,2]
[384863562,1757598664485,-958.94,0.00014794,2]
[384863563,1757598664494,-480.0,0.00014794,2]
[384863564,1757598664504,-590.39,0.00014794,2]
[384863565,1757598664513,-548.40195193,0.00014794,2]
[384863566,1757598664523,-1813.61,0.00014794,2]
[384863567,1757598664534,-480.0,0.00014794,2]
[384863568,1757598664543,-2368.9,0.00014794,2]
[384863569,1757598664552,-480.0,0.00014794,2]
[384863570,1757598664561,-480.0,0.00014794,2]
[384863571,1757598664571,-480.0,0.00014794,2]
[384863572,1757598664584,-4025.45,0.00014794,2]
[384863573,1757598664593,-480.0,0.00014794,2]
[384863574,1757598664603,-151.0,0.000148,2]
[384863575,1757598664612,-1000.0,0.00014821,2]
[384863576,1757598664621,-2642.45573862,0.00014831,2]
[384863577,1757598664630,-151.0,0.000149,2]
[384863578,1757598664640,-151.0,0.00015,2]
[384863579,1757598664649,-160.0,0.00015,2]
[384863580,1757598664658,-500.0,0.00015068,2]
[384863581,1757598664668,-157.0,0.00015068,2]
[384863582,1757598664677,-186.0,0.00015068,2]
[384863583,1757598664687,-500.0,0.00015068,2]
[384863584,1757598664696,-186.0,0.00015068,2]
[384863585,1757598664706,-186.0,0.00015068,2]
[384863586,1757598664715,-560.0,0.00015068,2]
[384863587,1757598664726,-480.0,0.00015068,2]
[384863588,1757598664737,-558.19,0.00015068,2]
[384863589,1757598664746,-480.0,0.00015068,2]
[384863590,1757598664757,-591.0,0.00015068,2]
[384863591,1757598664767,-480.0,0.00015068,2]
[384863592,1757598664776,-341.22,0.00015068,2]
[384863593,1757598664785,-480.0,0.00015068,2]
[384863594,1757598664795,-480.0,0.00015068,2]
[384863595,1757598664804,-572.73,0.00015068,2]
[384863596,1757598664813,-480.0,0.00015068,2]
[384863597,1757598664823,-532.04,0.00015068,2]
[384863598,1757598664835,-622.02,0.00015068,2]
[384863599,1757598664844,-480.0,0.00015068,2]
[384863600,1757598664854,-480.0,0.00015068,2]
[384863601,1757598664863,-480.0,0.00015068,2]
[384863602,1757598664872,-480.0,0.00015068,2]
[384863603,1757598664881,-515.58,0.00015068,2]
[384863604,1757598664891,-480.0,0.00015068,2]
[384863605,1757598664900,-552.04,0.00015068,2]
[384863606,1757598664910,-480.0,0.00015068,2]
[384863607,1757598664920,-480.0,0.00015068,2]
[384863608,1757598664930,-480.0,0.00015068,2]
[384863609,1757598664939,-480.0,0.00015068,2]
[384863610,1757598664949,-480.0,0.00015068,2]
[384863611,1757598664959,-370.44585829,0.00015068,2]
[384863612,1757598664969,-641.87,0.00015068,2]
[384863613,1757598664978,-480.0,0.00015068,2]
[384863614,1757598664988,-480.0,0.00015068,2]
[384863615,1757598664997,-480.0,0.00015068,2]
[384863616,1757598665007,-480.0,0.00015068,2]
[384863617,1757598665017,-480.0,0.00015068,2]
[384863618,1757598665027,-620.08,0.00015068,2]
[384863619,1757598665037,-480.0,0.00015068,2]
[384863620,1757598665046,-929.63,0.00015068,2]
[384863621,1757598665056,-2742.66,0.00015068,2]
[384863622,1757598665065,-480.0,0.00015068,2]
[384863623,1757598665074,-679.1,0.00015068,2]
[384863624,1757598665085,-844.75,0.00015068,2]
[384863625,1757598665095,-1458.01,0.00015068,2]
[384863626,1757598665104,-4276.44,0.00015068,2]
[384863627,1757598665113,-480.0,0.00015068,2]
[384863628,1757598665123,-480.0,0.00015068,2]
[384863629,1757598665134,-1218.49,0.00015068,2]
[384863630,1757598665143,-629.89,0.00015068,2]
[384863631,1757598665152,-531.52,0.00015068,2]
[384863632,1757598665162,-575.78,0.00015068,2]
[384863633,1757598665171,-873.55,0.00015068,2]
[384863634,1757598665180,-1193.43,0.00015068,2]
[384863635,1757598665189,-885.43,0.00015068,2]
[384863636,1757598665199,-480.0,0.00015068,2]
[384863637,1757598665212,-832.52,0.00015068,2]
[384863638,1757598665222,-1697.8,0.00015068,2]
[384863639,1757598665231,-480.0,0.00015068,2]
[384863640,1757598665240,-1648.8,0.00015068,2]
[384863641,1757598665250,-480.0,0.00015068,2]
[384863642,1757598665261,-506.33,0.00015068,2]
[384863643,1757598665270,-480.0,0.00015068,2]
[384863644,1757598665280,-480.0,0.00015068,2]
[384863645,1757598665289,-480.0,0.00015068,2]
[384863646,1757598665301,-1037.22,0.00015068,2]
[384863647,1757598665310,-1926.16,0.00015068,2]
[384863648,1757598665320,-1003.23,0.00015068,2]
[384863649,1757598665329,-480.0,0.00015068,2]
[384863650,1757598665339,-480.0,0.00015068,2]
[384863651,1757598665349,-480.0,0.00015068,2]
[384863652,1757598665359,-480.0,0.00015068,2]
[384863653,1757598665369,-480.0,0.00015068,2]
[384863654,1757598665379,-480.0,0.00015068,2]
[384863655,1757598665388,-958.94,0.00015068,2]
[384863656,1757598665398,-480.0,0.00015068,2]
[384863657,1757598665407,-590.39,0.00015068,2]
[384863658,1757598665416,-1813.61,0.00015068,2]
[384863659,1757598665426,-480.0,0.00015068,2]
[384863660,1757598665435,-2368.9,0.00015068,2]
[384863661,1757598665445,-480.0,0.00015068,2]
[384863662,1757598665455,-480.0,0.00015068,2]
[384863663,1757598665464,-4025.45,0.00015068,2]
[384863664,1757598665474,-480.0,0.00015068,2]
[384863665,1757598665484,-417.15472785,0.00015116,2]
[384863666,1757598665494,-160.0,0.00015116,2]
[384863667,1757598665503,-530.95967032,0.00015116,2]
[384863668,1757598665513,-846.96613202,0.00015116,2]
[384863669,1757598665524,-160.0,0.00015116,2]
[384863670,1757598665534,-160.0,0.00015116,2]
[384863671,1757598665543,-160.0,0.00015116,2]
[384863672,1757598665553,-160.0,0.00015116,2]
[384863673,1757598665563,-217.69300629,0.00015116,2]
[384863674,1757598665572,-160.0,0.00015116,2]
[384863675,1757598665583,-233.10680167,0.00015116,2]
[384863676,1757598665592,-160.0,0.00015116,2]
[384863677,1757598665602,-518.68054904,0.00015129,2]
[384863678,1757598665612,-500.0,0.00015193,2]
[384863679,1757598665621,-11740.1081425,0.00015216,2]
[384863680,1757598665631,-2761.1289535,0.00015216,2]
[384863681,1757598665640,-500.0,0.00015241,2]
[384863682,1757598665651,-502.38834978,0.00015241,2]
[384863683,1757598665661,-160.47317988,0.00015241,2]
[384863684,1757598665670,-500.57142924,0.00015241,2]
[384863685,1757598665680,-500.0,0.00015241,2]
[384863686,1757598665689,-2642.45573862,0.00015242,2]
[384863687,1757598665699,-151.0,0.000153,2]
[384863688,1757598665709,-500.0,0.00015342,2]
[384863689,1757598665719,-215.0,0.00015342,2]
[384863690,1757598665728,-500.0,0.00015342,2]
[384863691,1757598665737,-480.0,0.00015342,2]
[384863692,1757598665747,-558.19,0.00015342,2]
[384863693,1757598665756,-480.0,0.00015342,2]
[384863694,1757598665765,-591.0,0.00015342,2]
[384863695,1757598665774,-480.0,0.00015342,2]
[384863696,1757598665783,-480.0,0.00015342,2]
[384863697,1757598665792,-480.0,0.00015342,2]
[384863698,1757598665802,-572.73,0.00015342,2]
[384863699,1757598665812,-480.0,0.00015342,2]
[384863700,1757598665892,-532.04,0.00015342,2]
[384863701,1757598665902,-480.0,0.00015342,2]
[384863702,1757598665912,-480.0,0.00015342,2]
[384863703,1757598665921,-480.0,0.00015342,2]
[384863704,1757598665931,-515.58,0.00015342,2]
[384863705,1757598665940,-480.0,0.00015342,2]
[384863706,1757598665950,-552.04,0.00015342,2]
[384863707,1757598665959,-406.06,0.00015342,2]
[384863708,1757598665968,-480.0,0.00015342,2]
[384863709,1757598665978,-480.0,0.00015342,2]
[384863710,1757598665987,-480.0,0.00015342,2]
[384863711,1757598665996,-480.0,0.00015342,2]
[384863712,1757598666005,-641.87,0.00015342,2]
[384863713,1757598666015,-480.0,0.00015342,2]
[384863714,1757598666024,-480.0,0.00015342,2]
[384863715,1757598666034,-480.0,0.00015342,2]
[384863716,1757598666043,-620.08,0.00015342,2]
[384863717,1757598666052,-480.0,0.00015342,2]
[384863718,1757598666062,-929.63,0.00015342,2]
[384863719,1757598666071,-2742.66,0.00015342,2]
[384863720,1757598666081,-480.0,0.00015342,2]
[384863721,1757598666092,-679.1,0.00015342,2]
[384863722,1757598666101,-844.75,0.00015342,2]
[384863723,1757598666110,-1458.01,0.00015342,2]
[384863724,1757598666120,-4276.44,0.00015342,2]
[384863725,1757598666128,-480.0,0.00015342,2]
[384863726,1757598666138,-1218.49,0.00015342,2]
[384863727,1757598666148,-629.89,0.00015342,2]
[384863728,1757598666157,-531.52,0.00015342,2]
[384863729,1757598666166,-575.78,0.00015342,2]
[384863730,1757598666179,-873.55,0.00015342,2]
[384863731,1757598666189,-1193.43,0.00015342,2]
[384863732,1757598666199,-885.43,0.00015342,2]
[384863733,1757598666208,-416.61,0.00015342,2]
[384863734,1757598666220,-832.52,0.00015342,2]
[384863735,1757598666229,-1697.8,0.00015342,2]
[384863736,1757598666238,-480.0,0.00015342,2]
[384863737,1757598666248,-1648.8,0.00015342,2]
[384863738,1757598666257,-480.0,0.00015342,2]
[384863739,1757598666266,-506.33,0.00015342,2]
[384863740,1757598666275,-480.0,0.00015342,2]
[384863741,1757598666284,-480.0,0.00015342,2]
[384863742,1757598666294,-480.0,0.00015342,2]
[384863743,1757598666303,-1037.22,0.00015342,2]
[384863744,1757598666312,-1926.16,0.00015342,2]
[384863745,1757598666321,-1003.23,0.00015342,2]
[384863746,1757598666331,-480.0,0.00015342,2]
[384863747,1757598666341,-480.0,0.00015342,2]
[384863748,1757598666350,-480.0,0.00015342,2]
[384863749,1757598666359,-480.0,0.00015342,2]
[384863750,1757598666369,-480.0,0.00015342,2]
[384863751,1757598666379,-480.0,0.00015342,2]
[384863752,1757598666389,-958.94,0.00015342,2]
[384863753,1757598666398,-480.0,0.00015342,2]
[384863754,1757598666408,-590.39,0.00015342,2]
[384863755,1757598666417,-1813.61,0.00015342,2]
[384863756,1757598666426,-480.0,0.00015342,2]
[384863757,1757598666436,-2368.9,0.00015342,2]
[384863758,1757598666445,-480.0,0.00015342,2]
[384863759,1757598666455,-480.0,0.00015342,2]
[384863760,1757598666464,-4025.45,0.00015342,2]
[384863761,1757598666473,-480.0,0.00015342,2]
[384863762,1757598666483,-1500.0,0.00015368,2]
[384863763,1757598666492,-187.8816212,0.00015477,2]
[384863764,1757598666501,-151.0,0.000156,2]
[384863765,1757598666511,-500.0,0.00015616,2]
[384863766,1757598666520,-500.0,0.00015616,2]
[384863767,1757598666530,-480.0,0.00015616,2]
[384863768,1757598666540,-558.19,0.00015616,2]
[384863769,1757598666549,-513.73,0.00015616,2]
[384863770,1757598666558,-591.0,0.00015616,2]
[384863771,1757598666567,-480.0,0.00015616,2]
[384863772,1757598666576,-480.0,0.00015616,2]
[384863773,1757598666587,-480.0,0.00015616,2]
[384863774,1757598666596,-572.73,0.00015616,2]
[384863775,1757598666605,-480.0,0.00015616,2]
[384863776,1757598666615,-532.04,0.00015616,2]
[384863777,1757598666625,-480.0,0.00015616,2]
[384863778,1757598666634,-480.0,0.00015616,2]
[384863779,1757598666643,-480.0,0.00015616,2]
[384863780,1757598666652,-515.58,0.00015616,2]
[384863781,1757598666661,-480.0,0.00015616,2]
[384863782,1757598666671,-552.04,0.00015616,2]
[384863783,1757598666680,-480.0,0.00015616,2]
[384863784,1757598666689,-480.0,0.00015616,2]
[384863785,1757598666699,-480.0,0.00015616,2]
[384863786,1757598666708,-480.0,0.00015616,2]
[384863787,1757598666717,-641.87,0.00015616,2]
[384863788,1757598666727,-480.0,0.00015616,2]
[384863789,1757598666736,-480.0,0.00015616,2]
[384863790,1757598666745,-480.0,0.00015616,2]
[384863791,1757598666754,-620.08,0.00015616,2]
[384863792,1757598666764,-480.0,0.00015616,2]
[384863793,1757598666773,-929.63,0.00015616,2]
[384863794,1757598666782,-2742.66,0.00015616,2]
[384863795,1757598666792,-480.0,0.00015616,2]
[384863796,1757598666801,-679.1,0.00015616,2]
[384863797,1757598666811,-844.75,0.00015616,2]
[384863798,1757598666820,-1458.01,0.00015616,2]
[384863799,1757598666830,-4276.44,0.00015616,2]
[384863800,1757598666839,-480.0,0.00015616,2]
[384863801,1757598666849,-1218.49,0.00015616,2]
[384863802,1757598666859,-629.89,0.00015616,2]
[384863803,1757598666869,-531.52,0.00015616,2]
[384863804,1757598666878,-575.78,0.00015616,2]
[384863805,1757598666887,-873.55,0.00015616,2]
[384863806,1757598666897,-1193.43,0.00015616,2]
[384863807,1757598666907,-885.43,0.00015616,2]
[384863808,1757598666916,-832.52,0.00015616,2]
[384863809,1757598666925,-1697.8,0.00015616,2]
[384863810,1757598666934,-480.0,0.00015616,2]
[384863811,1757598666944,-1648.8,0.00015616,2]
[384863812,1757598666953,-480.0,0.00015616,2]
[384863813,1757598666965,-506.33,0.00015616,2]
[384863814,1757598666975,-480.0,0.00015616,2]
[384863815,1757598666985,-480.0,0.00015616,2]
[384863816,1757598666994,-615.3,0.00015616,2]
[384863817,1757598667004,-1037.22,0.00015616,2]
[384863818,1757598667013,-1926.16,0.00015616,2]
[384863819,1757598667022,-1003.23,0.00015616,2]
[384863820,1757598667033,-480.0,0.00015616,2]
[384863821,1757598667042,-480.0,0.00015616,2]
[384863822,1757598667052,-480.0,0.00015616,2]
[384863823,1757598667061,-480.0,0.00015616,2]
[384863824,1757598667071,-480.0,0.00015616,2]
[384863825,1757598667082,-480.0,0.00015616,2]
[384863826,1757598667092,-958.94,0.00015616,2]
[384863827,1757598667101,-480.0,0.00015616,2]
[384863828,1757598667111,-590.39,0.00015616,2]
[384863829,1757598667120,-1813.61,0.00015616,2]
[384863830,1757598667134,-480.0,0.00015616,2]
[384863831,1757598667144,-2368.9,0.00015616,2]
[384863832,1757598667152,-480.0,0.00015616,2]
[384863833,1757598667162,-480.0,0.00015616,2]
[384863834,1757598667171,-4025.45,0.00015616,2]
[384863835,1757598667249,-500.0,0.0001589,2]
[384863836,1757598667268,-500.0,0.0001589,2]
[384863837,1757598667277,-480.0,0.0001589,2]
[384863838,1757598667287,-558.19,0.0001589,2]
[384863839,1757598667298,-591.0,0.0001589,2]
[384863840,1757598667307,-480.0,0.0001589,2]
[384863841,1757598667317,-480.0,0.0001589,2]
[384863842,1757598667327,-480.0,0.0001589,2]
[384863843,1757598667338,-572.73,0.0001589,2]
[384863844,1757598667347,-480.0,0.0001589,2]
[384863845,1757598667357,-532.04,0.0001589,2]
[384863846,1757598667366,-480.0,0.0001589,2]
[384863847,1757598667375,-480.0,0.0001589,2]
[384863848,1757598667384,-480.0,0.0001589,2]
[384863849,1757598667394,-515.58,0.0001589,2]
[384863850,1757598667404,-480.0,0.0001589,2]
[384863851,1757598667413,-552.04,0.0001589,2]
[384863852,1757598667422,-480.0,0.0001589,2]
[384863853,1757598667431,-480.0,0.0001589,2]
[384863854,1757598667441,-480.0,0.0001589,2]
[384863855,1757598667450,-480.0,0.0001589,2]
[384863856,1757598667459,-641.87,0.0001589,2]
[384863857,1757598667468,-480.0,0.0001589,2]
[384863858,1757598667477,-361.27,0.0001589,2]
[384863859,1757598667486,-480.0,0.0001589,2]
[384863860,1757598667495,-620.08,0.0001589,2]
[384863861,1757598667505,-480.0,0.0001589,2]
[384863862,1757598667514,-929.63,0.0001589,2]
[384863863,1757598667523,-2742.66,0.0001589,2]
[384863864,1757598667533,-480.0,0.0001589,2]
[384863865,1757598667542,-679.1,0.0001589,2]
[384863866,1757598667551,-844.75,0.0001589,2]
[384863867,1757598667560,-1458.01,0.0001589,2]
[384863868,1757598667570,-4276.44,0.0001589,2]
[384863869,1757598667579,-480.0,0.0001589,2]
[384863870,1757598667589,-1218.49,0.0001589,2]
[384863871,1757598667598,-629.89,0.0001589,2]
[384863872,1757598667607,-107.38850958,0.0001589,2]
[384863873,1757598668491,500.0,0.00013597,2]
[384863874,1757598668530,500.0,0.00013597,2]
[384863875,1757598668563,304.4211543,0.00013597,2]
[384863876,1757598668597,500.0,0.00013597,2]
[384863877,1757598668632,245.32572787,0.00013597,2]
[384863878,1757598668658,254.67427213,0.00013597,2]
[384863879,1757598668691,500.0,0.00013597,2]
[384863880,1757598668722,500.0,0.00013597,2]
[384863881,1757598668752,500.0,0.00013597,2]
[384863882,1757598668782,500.0,0.00013597,2]
[384863884,1757598668815,500.0,0.00013597,2]
[384863885,1757598668850,227.79935975,0.00013597,2]
[384863886,1757598668882,500.0,0.00013597,2]
[384863887,1757598668916,300.0,0.00013597,2]
[384863888,1757598669004,300.0,0.00013596,2]
[384863889,1757598669121,300.0,0.0001346,2]
[384863891,1757598680786,500.0,0.00013597,2]
[384863892,1757598680821,500.0,0.00013597,2]
[384863893,1757598680854,500.0,0.00013597,2]
[384863894,1757598680889,500.0,0.00013597,2]
[384863895,1757598680921,500.0,0.00013597,2]
[384863896,1757598680953,550.0,0.00013597,2]
[384863897,1757598680985,500.0,0.00013597,2]
[384863898,1757598681016,500.0,0.00013597,2]
[384863899,1757598681047,463.12695443,0.00013597,2]
[384863900,1757598681079,500.0,0.00013597,2]
[384863901,1757598681110,600.0,0.00013597,2]
[384863902,1757598681144,4.40941369,0.00013597,2]
[384863903,1757598681166,495.59058631,0.00013597,2]
[384863904,1757598681199,238.84774808,0.00013597,2]
[384863905,1757598681307,500.0,0.00013597,2]
[384863906,1757598681344,500.0,0.00013597,2]
[384863907,1757598681376,500.0,0.00013597,2]
[384863908,1757598681412,500.0,0.00013597,2]
[384863909,1757598681505,500.0,0.00013597,2]
[384863910,1757598681541,500.0,0.00013597,2]
[384863911,1757598685280,500.0,0.00013597,2]
[384863912,1757598689177,1313.86263142,0.00013561,2]
[384863913,1757598698447,500.0,0.00013597,2]
[384863914,1757598698479,500.0,0.00013597,2]
[384863915,1757598698515,500.0,0.00013597,2]
[384863916,1757598698548,500.0,0.00013597,2]
[384863917,1757598698578,500.0,0.00013597,2]
[384863918,1757598698613,500.0,0.00013597,2]
[384863919,1757598698653,500.0,0.00013597,2]
[384863920,1757598698686,500.0,0.00013597,2]
[384863921,1757598698716,451.70903419,0.00013597,2]
[384863922,1757598698738,48.29096581,0.00013597,2]
[384863923,1757598698769,500.0,0.00013597,2]
[384863924,1757598698799,500.0,0.00013597,2]
[384863925,1757598698829,500.0,0.00013597,2]
[384863926,1757598698864,500.0,0.00013597,2]
[384863927,1757598698895,500.0,0.00013597,2]
[384863928,1757598698927,500.0,0.00013597,2]
[384863929,1757598698962,500.0,0.00013597,2]
[384863930,1757598698992,499.27851668,0.00013597,2]
[384863931,1757598699024,185.21437727,0.00013597,2]
[384863932,1757598699056,500.0,0.00013597,2]
[384863933,1757598699089,500.0,0.00013597,2]
[384863934,1757598699125,500.0,0.00013597,2]
[384863935,1757598699157,500.0,0.00013597,2]
[384863936,1757598699207,500.0,0.00013597,2]
[384863937,1757598699308,500.0,0.00013597,2]
[384863938,1757598699346,500.0,0.00013597,2]
[384863939,1757598699379,500.0,0.00013597,2]
[384863942,1757598781278,1000.0,0.00013462,2]
[384863944,1757598790649,767.22614024,0.00013498,2]
[384863945,1757598790675,10000.01,0.00013498,2]
[384863946,1757598790699,10000.01,0.00013498,2]
[384863947,1757598790722,6834.7793706,0.00013498,2]
[384863949,1757598804898,1000.0,0.00013462,2]
[384863950,1757598829690,1000.0,0.00013462,2]
[384863951,1757598853726,1000.0,0.00013462,2]
[384863952,1757598877058,165.2306294,0.00013462,2]
[384863953,1757598877082,834.7693706,0.00013462,2]
[384863954,1757598902187,1000.0,0.00013462,2]
[384863955,1757598925986,1000.0,0.00013462,2]
[384863957,1757598951217,1000.0,0.00013462,2]
[384863958,1757598953065,181.700093,0.0001285,2]
[384863959,1757598975127,1000.0,0.00013462,2]
[384863960,1757598999839,1000.0,0.00013462,2]
[384863961,1757599024218,1000.0,0.00013462,2]
[384863962,1757599049161,1000.0,0.00013462,2]
[384863963,1757599073623,1000.0,0.00013462,2]
[384863964,1757599099423,983.5405364,0.00013462,2]
[384863965,1757599099450,16.4594636,0.00013462,2]
[384863966,1757599123397,1000.0,0.00013462,2]
[384863967,1757599147304,190.47819628,0.00013462,2]
[384863968,1757599251770,1000.0,0.00013462,2]
[384863969,1757599268353,1000.0,0.00013462,2]
[384863970,1757599276856,1000.0,0.00013462,2]
[384863971,1757599286672,1000.0,0.00013462,2]
[384863972,1757599286779,539.35,0.00012329,2]
[384863973,1757599295596,1000.0,0.00013462,2]
[384863974,1757599297253,586.71,0.00012329,2]
[384863975,1757599304521,1000.0,0.00013462,2]
[384863976,1757599307975,718.92,0.00012329,2]
[384863977,1757599313774,948.09234012,0.00013462,2]
[384863978,1757599313797,51.90765988,0.00013462,2]
[384863979,1757599318465,1135.6,0.00012329,2]
[384863980,1757599323529,1000.0,0.00013462,2]
[384863981,1757599329164,1631.73,0.00012329,2]
[384863982,1757599332783,1000.0,0.00013462,2]
[384863983,1757599340298,1631.73,0.00012329,2]
[384863984,1757599341371,1000.0,0.00013462,2]
[384863985,1757599349707,1000.0,0.00013462,2]
[384863986,1757599351210,1549.04234012,0.00012329,2]
[384863987,1757599351234,317.69765988,0.00012329,2]
[384863988,1757599358283,1000.0,0.00013462,2]
[384863989,1757599362084,1555.62,0.00012329,2]
[384863990,1757599368247,1000.0,0.00013462,2]
[384863991,1757599372283,6126.69234012,0.00013,2]
[384863992,1757599372307,10000.01,0.00013,2]
[384863993,1757599372329,8874.20936083,0.00013,2]
[384863994,1757599373431,1125.80063917,0.00012329,2]
[384863995,1757599373456,170.54936083,0.00012329,2]
[384863996,1757599377014,1000.0,0.00013462,2]
[384863997,1757599384292,1080.29,0.00012329,2]
[384863998,1757599386781,1000.0,0.00013462,2]
[384863999,1757599389305,204.10530951,0.00013498,2]
[384864000,1757599394876,900.24,0.00012329,2]
[384864001,1757599395700,1000.0,0.00013462,2]
[384864002,1757599404254,1000.0,0.00013462,2]
[384864003,1757599405327,750.2,0.00012329,2]
[384864004,1757599412969,1000.0,0.00013462,2]
[384864005,1757599416095,625.17,0.00012329,2]
[384864006,1757599430306,1000.0,0.00013462,2]
[384864007,1757599439733,269.45532966,0.00013462,2]
[384864008,1757599439757,730.54467034,0.00013462,2]
[384864009,1757599443992,520.97,0.00012329,2]
[384864010,1757599454498,795.61,0.00012329,2]
[384864011,1757599457644,1000.0,0.00013462,2]
[384864012,1757599465058,663.01,0.00012329,2]
[384864013,1757599465829,1000.0,0.00013462,2]
[384864014,1757599475417,552.5,0.00012329,2]
[384864016,1757599483348,1000.0,0.00013462,2]
[384864017,1757599486064,460.42,0.00012329,2]
[384864018,1757599492116,1000.0,0.00013462,2]
[384864019,1757599496795,383.68,0.00012329,2]
[384864020,1757599507326,319.74,0.00012329,2]
[384864021,1757599508929,1000.0,0.00013462,2]
[384864022,1757599517612,573.53532966,0.00013462,2]
[384864023,1757599517638,426.46467034,0.00013462,2]
[384864024,1757599517772,266.45,0.00012329,2]
[384864025,1757599528248,222.04,0.00012329,2]
[384864026,1757599536171,-171.26782878,0.00013462,2]
[384864027,1757599538767,185.03,0.00012329,2]
[384864028,1757599539060,-176.51599405,0.00013462,2]
[384864029,1757599541422,-347.7719881,0.00013462,2]
[384864030,1757599543232,652.21617717,0.00013327,2]
[384864032,1757599544066,-154.2180119,0.00013462,2]
[384864033,1757599547456,-150.22617717,0.00013462,2]
[384864034,1757599550005,154.19,0.00012329,2]
[384864035,1757599560938,771.0,0.00012329,2]
[384864036,1757599561262,-158.51782878,0.00013462,2]
[384864037,1757599563567,-171.25599405,0.00013462,2]
[384864038,1757599565757,-308.74400595,0.00013462,2]
[384864039,1757599568541,-275.2812888,0.00013462,2]
[384864040,1757599568898,73.21944823,0.00013327,2]
[384864041,1757599568924,510.80584652,0.00013327,2]
[384864042,1757599571847,158.22,0.00012329,2]
[384864043,1757599582611,791.13,0.00012329,2]
[384864044,1757599594088,913.79911758,0.00013327,2]
[384864045,1757599594683,-283.72727487,0.00013462,2]
[384864046,1757599596894,-376.13947647,0.00013462,2]
[384864047,1757599599257,-196.27272513,0.00013462,2]
[384864048,1757599601628,-57.65964111,0.00013462,2]
[384864049,1757599611644,-249.67507202,0.00013462,2]
[384864050,1757599613625,-455.48778367,0.00013462,2]
[384864051,1757599615887,-208.63626189,0.00013462,2]
[384864052,1757599618800,208.63626189,0.00013327,2]
[384864053,1757599628200,823.19319894,0.00013283,2]
[384864054,1757599634948,913.79911758,0.00013462,2]
[384864055,1757599643785,913.79911758,0.00013462,2]
[384864056,1757599661808,-164.05823101,0.00013462,2]